[Event "Fast Chess"]
[Site "ChessKid.com"]
[Date "2020.04.17"]
[Round "2"]
[White "Horky, Florian"]
[Black "Hlinka, Patricia"]
[Result "1-0"]
[ECO "C20"]
[WhiteElo "849"]
[BlackElo "927"]
[PlyCount "121"]
[EventDate "2020.??.??"]
[TimeControl "300+50"]
[WhiteClock "0:02:51"]
[BlackClock "0:03:02"]

1. e4 {[%emt 0:00:45]} e5 {[%emt 0:00:46]} 2. Qf3 {[%emt 0:00:48]} f6 {[%emt 0:
00:49]} 3. Bc4 {[%emt 0:00:51]} Nh6 {[%emt 0:00:49]} 4. Nh3 {[%emt 0:00:51]} b5
{[%emt 0:00:49]} 5. Bxb5 {[%emt 0:00:51]} a6 {[%emt 0:00:45]} 6. Bc4 {[%emt 0:
00:52]} g5 {[%emt 0:00:58]} 7. c3 {[%emt 0:01:08]} g4 {[%emt 0:00:51]} 8. Qd3 {
[%emt 0:00:58]} gxh3 {[%emt 0:00:49]} 9. gxh3 {[%emt 0:00:48]} f5 {[%emt 0:00:
55]} 10. Qe3 {[%emt 0:00:50]} fxe4 {[%emt 0:00:46]} 11. Bd5 {[%emt 0:00:50]}
Ra7 {[%emt 0:00:49]} 12. Qxa7 {[%emt 0:00:56]} Nc6 {[%emt 0:00:50]} 13. O-O {
[%emt 0:00:53]} Nxa7 {[%emt 0:00:52]} 14. Bxe4 {[%emt 0:00:54]} Bc5 {[%emt 0:
00:59]} 15. d4 {[%emt 0:00:48]} Bf8 {[%emt 0:00:50]} 16. dxe5 {[%emt 0:00:47]}
a5 {[%emt 0:00:53]} 17. h4 {[%emt 0:00:47]} Ng4 {[%emt 0:00:53]} 18. Bg5 {
[%emt 0:00:56]} Qxg5 {[%emt 0:00:51]} 19. hxg5 {[%emt 0:00:47]} d5 {[%emt 0:00:
51]} 20. Bxd5 {[%emt 0:01:00]} c6 {[%emt 0:00:50]} 21. Bc4 {[%emt 0:00:56]} Nb5
{[%emt 0:00:54]} 22. f3 {[%emt 0:00:51]} Nh6 {[%emt 0:00:53]} 23. f4 {[%emt 0:
00:58]} Ng8 {[%emt 0:00:45]} 24. f5 {[%emt 0:00:48]} Na7 {[%emt 0:00:47]} 25.
f6 {[%emt 0:00:48]} a4 {[%emt 0:00:49]} 26. g6 {[%emt 0:00:48]} hxg6 {[%emt 0:
00:48]} 27. e6 {[%emt 0:00:50]} Nh6 {[%emt 0:00:55]} 28. e7 {[%emt 0:00:56]}
Bxe7 {[%emt 0:00:51]} 29. Nd2 {[%emt 0:00:57]} Bxf6 {[%emt 0:00:45]} 30. Rxf6 {
[%emt 0:00:48]} Ng4 {[%emt 0:00:52]} 31. Rxg6 {[%emt 0:00:48]} Ne5 {[%emt 0:00:
51]} 32. Rg3 {[%emt 0:01:09]} Nf7 {[%emt 0:00:51]} 33. Re1+ {[%emt 0:00:57]}
Kf8 {[%emt 0:00:50]} 34. Rf1 {[%emt 0:00:52]} Rh7 {[%emt 0:00:52]} 35. Bxf7 {
[%emt 0:00:48]} Rxf7 {[%emt 0:00:48]} 36. Nf3 {[%emt 0:00:50]} Rh7 {[%emt 0:00:
50]} 37. Nh4+ {[%emt 0:00:50]} Ke8 {[%emt 0:00:59]} 38. Ng6 {[%emt 0:00:57]} c5
{[%emt 0:00:51]} 39. Re3+ {[%emt 0:00:50]} Kd7 {[%emt 0:00:50]} 40. Rd1+ {
[%emt 0:00:49]} Kc6 {[%emt 0:00:49]} 41. Rd8 {[%emt 0:00:59]} Bg4 {[%emt 0:00:
56]} 42. Ra8 {[%emt 0:00:52]} Nb5 {[%emt 0:00:49]} 43. Re6+ {[%emt 0:00:53]}
Kd5 {[%emt 0:00:49]} 44. Re5+ {[%emt 0:00:55]} Kc4 {[%emt 0:00:52]} 45. Rxa4+ {
[%emt 0:00:53]} Kd3 {[%emt 0:00:50]} 46. b4 {[%emt 0:00:49]} cxb4 {[%emt 0:00:
49]} 47. cxb4 {[%emt 0:00:49]} Nc3 {[%emt 0:00:52]} 48. Ra3 {[%emt 0:00:55]}
Bf5 {[%emt 0:01:02]} 49. Rd5+ {[%emt 0:00:48]} Ke4 {[%emt 0:00:49]} 50. Re5+ {
[%emt 0:00:52]} Kd4 {[%emt 0:00:57]} 51. Rxf5 {[%emt 0:01:00]} Ne2+ {[%emt 0:
00:56]} 52. Kf2 {[%emt 0:00:51]} Nc3 {[%emt 0:01:48]} 53. b5 {[%emt 0:00:51]}
Nxb5 {[%emt 0:00:55]} 54. Rxb5 {[%emt 0:00:48]} Kc4 {[%emt 0:00:51]} 55. Rab3 {
[%emt 0:00:56]} Rg7 {[%emt 0:00:52]} 56. Ra5 {[%emt 0:00:48]} Rxg6 {[%emt 0:01:
02]} 57. Ra4+ {[%emt 0:00:48]} Kd5 {[%emt 0:00:51]} 58. Rb5+ {[%emt 0:00:48]}
Kd6 {[%emt 0:00:49]} 59. Ra6+ {[%emt 0:00:48]} Ke7 {[%emt 0:00:48]} 60. Rb7+ {
[%emt 0:00:48]} Ke8 {[%emt 0:00:48]} 61. Ra8# {[%emt 0:00:47] OnlyOptimalTruck
won by checkmate} 1-0

[Event "Fast Chess"]
[Site "ChessKid.com"]
[Date "2020.04.17"]
[Round "3"]
[White "Hlinka, Patrick"]
[Black "Gross, Lukas"]
[Result "0-1"]
[ECO "B06"]
[WhiteElo "1151"]
[BlackElo "1143"]
[PlyCount "74"]
[EventDate "2020.??.??"]
[TimeControl "300+50"]
[WhiteClock "0:04:40"]
[BlackClock "0:04:22"]

1. e4 {[%emt 0:00:46]} g6 {[%emt 0:00:47]} 2. Bc4 {[%emt 0:00:55]} Nh6 {
[%emt 0:00:48]} 3. d3 {[%emt 0:00:50]} Bg7 {[%emt 0:00:49]} 4. c3 {[%emt 0:00:
51]} O-O {[%emt 0:00:51]} 5. Bxh6 {[%emt 0:00:59]} Bxh6 {[%emt 0:00:49]} 6. Qh5
{[%emt 0:00:54]} gxh5 {[%emt 0:00:48]} 7. Nf3 {[%emt 0:00:58]} e6 {[%emt 0:00:
49]} 8. d4 {[%emt 0:00:48]} d5 {[%emt 0:00:48]} 9. exd5 {[%emt 0:00:50]} exd5 {
[%emt 0:00:47]} 10. Bb3 {[%emt 0:00:47]} Qe8+ {[%emt 0:01:00]} 11. Kd1 {
[%emt 0:00:54]} Qe7 {[%emt 0:00:51]} 12. Re1 {[%emt 0:00:52]} Be6 {[%emt 0:00:
50]} 13. Nbd2 {[%emt 0:00:58]} Bxd2 {[%emt 0:00:54]} 14. Kxd2 {[%emt 0:00:47]}
h4 {[%emt 0:00:57]} 15. g3 {[%emt 0:00:51]} hxg3 {[%emt 0:00:47]} 16. fxg3 {
[%emt 0:00:49]} Qd7 {[%emt 0:00:53]} 17. Ne5 {[%emt 0:00:51]} Qd8 {[%emt 0:00:
50]} 18. c4 {[%emt 0:00:47]} dxc4 {[%emt 0:00:48]} 19. Bxc4 {[%emt 0:00:47]}
Bxc4 {[%emt 0:00:47]} 20. Nxc4 {[%emt 0:00:46]} Qg5+ {[%emt 0:00:53]} 21. Kd1 {
[%emt 0:00:49]} Qd5 {[%emt 0:00:54]} 22. b3 {[%emt 0:00:51]} Qxd4+ {[%emt 0:00:
48]} 23. Kc2 {[%emt 0:00:54]} b5 {[%emt 0:00:58]} 24. Red1 {[%emt 0:00:48]}
Qf2+ {[%emt 0:00:50]} 25. Rd2 {[%emt 0:00:54]} Qf6 {[%emt 0:00:54]} 26. Re1 {
[%emt 0:00:52]} bxc4 {[%emt 0:00:48]} 27. bxc4 {[%emt 0:00:46]} Nc6 {[%emt 0:
00:49]} 28. Kd3 {[%emt 0:01:02]} Qd4+ {[%emt 0:00:56]} 29. Ke2 {[%emt 0:00:52]}
Qxc4+ {[%emt 0:00:50]} 30. Kd1 {[%emt 0:00:51]} Rab8 {[%emt 0:00:54]} 31. Rc2 {
[%emt 0:00:49]} Qb4 {[%emt 0:00:50]} 32. Kc1 {[%emt 0:00:49]} Qb1+ {[%emt 0:00:
49]} 33. Kd2 {[%emt 0:00:47]} Rfd8+ {[%emt 0:00:49]} 34. Ke2 {[%emt 0:00:53]}
Qxc2+ {[%emt 0:00:47]} 35. Kf1 {[%emt 0:00:47]} Rd2 {[%emt 0:00:53]} 36. a4 {
[%emt 0:00:57]} Rb1 {[%emt 0:00:48]} 37. Rxb1 {[%emt 0:00:49]} Qxb1# {[%emt 0:
00:47] RosyPopularArm won by checkmate} 0-1

[Event "Fast Chess"]
[Site "ChessKid.com"]
[Date "2020.04.17"]
[Round "3"]
[White "Horky, Florian"]
[Black "Burgsteiner, Konstantin"]
[Result "1-0"]
[ECO "C00"]
[WhiteElo "929"]
[BlackElo "1040"]
[PlyCount "119"]
[EventDate "2020.??.??"]
[TimeControl "300+50"]
[WhiteClock "0:04:20"]
[BlackClock "0:03:30"]

1. e4 {[%emt 0:00:46]} e6 {[%emt 0:00:47]} 2. c4 {[%emt 0:00:53]} Bc5 {[%emt 0:
00:48]} 3. g4 {[%emt 0:00:50]} Qf6 {[%emt 0:00:49]} 4. f3 {[%emt 0:00:50]} Qh4+
{[%emt 0:00:51]} 5. Ke2 {[%emt 0:00:55]} Qg5 {[%emt 0:00:53]} 6. a4 {[%emt 0:
00:52]} b6 {[%emt 0:00:51]} 7. b3 {[%emt 0:00:47]} Ba6 {[%emt 0:00:48]} 8. d3 {
[%emt 0:00:48]} Bd4 {[%emt 0:00:50]} 9. h3 {[%emt 0:00:50]} Bxa1 {[%emt 0:00:
48]} 10. Bxg5 {[%emt 0:01:01]} f6 {[%emt 0:00:48]} 11. Bf4 {[%emt 0:00:55]} Ne7
{[%emt 0:00:49]} 12. Na3 {[%emt 0:00:52]} Bc3 {[%emt 0:00:54]} 13. Qc1 {
[%emt 0:00:55]} Bb4 {[%emt 0:00:48]} 14. Nb5 {[%emt 0:00:50]} Kd8 {[%emt 0:01:
03]} 15. Nxc7 {[%emt 0:01:05]} Bb7 {[%emt 0:01:02]} 16. Nxa8 {[%emt 0:00:50]}
Bxa8 {[%emt 0:00:47]} 17. Bxb8 {[%emt 0:00:54]} Nc6 {[%emt 0:00:54]} 18. Bd6 {
[%emt 0:00:55]} e5 {[%emt 0:00:52]} 19. Bxb4 {[%emt 0:00:59]} Nxb4 {[%emt 0:00:
48]} 20. c5 {[%emt 0:01:02]} Na2 {[%emt 0:00:50]} 21. Qa1 {[%emt 0:00:54]} Nb4
{[%emt 0:00:50]} 22. cxb6 {[%emt 0:00:53]} Nc2 {[%emt 0:00:48]} 23. Qc1 {
[%emt 0:00:50]} Nd4+ {[%emt 0:00:48]} 24. Ke3 {[%emt 0:00:50]} Nb5 {[%emt 0:00:
54]} 25. bxa7 {[%emt 0:00:48]} Nd6 {[%emt 0:00:51]} 26. Bg2 {[%emt 0:00:51]}
Nc8 {[%emt 0:00:53]} 27. Ne2 {[%emt 0:00:49]} Nxa7 {[%emt 0:00:48]} 28. Qc2 {
[%emt 0:00:47]} Ke7 {[%emt 0:00:56]} 29. Rc1 {[%emt 0:00:49]} Rc8 {[%emt 0:00:
48]} 30. Qb2 {[%emt 0:00:53]} Rd8 {[%emt 0:00:54]} 31. b4 {[%emt 0:00:50]} Rb8
{[%emt 0:00:52]} 32. b5 {[%emt 0:00:48]} d6 {[%emt 0:00:59]} 33. b6 {[%emt 0:
00:49]} Nc6 {[%emt 0:00:48]} 34. b7 {[%emt 0:00:49]} Bxb7 {[%emt 0:00:48]} 35.
Rc3 {[%emt 0:00:53]} Bc8 {[%emt 0:00:51]} 36. Rb3 {[%emt 0:00:52]} Bb7 {
[%emt 0:00:50]} 37. a5 {[%emt 0:00:50]} Kd8 {[%emt 0:00:53]} 38. a6 {[%emt 0:
00:48]} Ba8 {[%emt 0:00:52]} 39. a7 {[%emt 0:00:50]} Rxb3 {[%emt 0:00:48]} 40.
Qxb3 {[%emt 0:00:49]} Nxa7 {[%emt 0:00:48]} 41. Qb8+ {[%emt 0:00:52]} Kd7 {
[%emt 0:00:50]} 42. Qxa8 {[%emt 0:00:47]} Nc8 {[%emt 0:00:49]} 43. Bf1 {
[%emt 0:00:55]} Nb6 {[%emt 0:00:49]} 44. Qb7+ {[%emt 0:00:54]} Ke6 {[%emt 0:00:
53]} 45. Qxb6 {[%emt 0:00:48]} g6 {[%emt 0:00:49]} 46. d4 {[%emt 0:00:48]}
exd4+ {[%emt 0:00:48]} 47. Nxd4+ {[%emt 0:00:50]} Ke7 {[%emt 0:01:02]} 48. Bb5
{[%emt 0:00:52]} g5 {[%emt 0:00:54]} 49. e5 {[%emt 0:00:48]} dxe5 {[%emt 0:00:
48]} 50. Qb7+ {[%emt 0:00:52]} Kd6 {[%emt 0:00:48]} 51. Qc6+ {[%emt 0:00:51]}
Ke7 {[%emt 0:00:48]} 52. Ne6 {[%emt 0:00:49]} Kf7 {[%emt 0:00:50]} 53. Qd7+ {
[%emt 0:00:48]} Kg6 {[%emt 0:00:48]} 54. h4 {[%emt 0:00:48]} gxh4 {[%emt 0:00:
48]} 55. g5 {[%emt 0:00:53]} h3 {[%emt 0:00:47]} 56. Qe8+ {[%emt 0:00:49]} Kf5
{[%emt 0:00:52]} 57. Bd3+ {[%emt 0:00:50]} e4 {[%emt 0:00:50]} 58. Bxe4+ {
[%emt 0:00:54]} Ke5 {[%emt 0:00:49]} 59. Qc6 {[%emt 0:01:05]} h2 {[%emt 0:00:
51]} 60. f4# {[%emt 0:00:53] OnlyOptimalTruck won by checkmate} 1-0

[Event "Fast Chess"]
[Site "ChessKid.com"]
[Date "2020.04.17"]
[Round "3"]
[White "Stiedl, Dominik"]
[Black "Multerer, Matthias"]
[Result "1-0"]
[ECO "B01"]
[WhiteElo "1046"]
[BlackElo "679"]
[PlyCount "85"]
[EventDate "2020.??.??"]
[TimeControl "300+50"]
[WhiteClock "0:02:13"]
[BlackClock "0:05:12"]

1. e4 {[%emt 0:00:46]} d5 {[%emt 0:00:48]} 2. Qf3 {[%emt 0:00:48]} dxe4 {
[%emt 0:00:47]} 3. Qxe4 {[%emt 0:00:48]} f6 {[%emt 0:00:52]} 4. Bc4 {[%emt 0:
00:53]} g6 {[%emt 0:00:53]} 5. g4 {[%emt 0:00:52]} f5 {[%emt 0:00:48]} 6. gxf5
{[%emt 0:00:48]} gxf5 {[%emt 0:00:49]} 7. Qf4 {[%emt 0:00:50]} Nh6 {[%emt 0:00:
58]} 8. b4 {[%emt 0:00:50]} c6 {[%emt 0:00:55]} 9. Bb2 {[%emt 0:00:47]} Rg8 {
[%emt 0:00:49]} 10. Bxg8 {[%emt 0:00:52]} Bg7 {[%emt 0:00:54]} 11. Bxg7 {
[%emt 0:00:53]} Nxg8 {[%emt 0:00:59]} 12. Be5 {[%emt 0:00:52]} Nh6 {[%emt 0:00:
49]} 13. Qxh6 {[%emt 0:00:48]} f4 {[%emt 0:01:00]} 14. f3 {[%emt 0:00:47]} Na6
{[%emt 0:00:55]} 15. Bxf4 {[%emt 0:00:47]} Nxb4 {[%emt 0:00:49]} 16. c3 {
[%emt 0:00:47]} Na6 {[%emt 0:00:49]} 17. Qxh7 {[%emt 0:00:50]} Qd7 {[%emt 0:00:
54]} 18. Nh3 {[%emt 0:00:56]} Qc7 {[%emt 0:00:58]} 19. Bxc7 {[%emt 0:00:48]}
Bd7 {[%emt 0:00:51]} 20. Qh8+ {[%emt 0:00:48]} Kf7 {[%emt 0:00:48]} 21. Rf1 {
[%emt 0:00:53]} Rxh8 {[%emt 0:00:48]} 22. Be5 {[%emt 0:00:53]} e6 {[%emt 0:00:
54]} 23. Bxh8 {[%emt 0:00:48]} b5 {[%emt 0:00:56]} 24. Ng5+ {[%emt 0:00:47]}
Kg6 {[%emt 0:00:53]} 25. Rg1 {[%emt 0:00:48]} Be8 {[%emt 0:00:58]} 26. f4 {
[%emt 0:00:50]} Nc5 {[%emt 0:00:55]} 27. d4 {[%emt 0:00:48]} Nd7 {[%emt 0:00:
51]} 28. Rg4 {[%emt 0:01:08]} Bf7 {[%emt 0:00:53]} 29. h3 {[%emt 0:00:47]} e5 {
[%emt 0:00:52]} 30. fxe5 {[%emt 0:00:47]} Be8 {[%emt 0:01:02]} 31. e6 {[%emt 0:
00:47]} Nb6 {[%emt 0:00:50]} 32. e7 {[%emt 0:00:48]} Nc4 {[%emt 0:00:54]} 33.
h4 {[%emt 0:00:53]} Bd7 {[%emt 0:00:54]} 34. Ne6+ {[%emt 0:00:55]} Kh5 {
[%emt 0:01:04]} 35. Rf4 {[%emt 0:00:50]} Kh6 {[%emt 0:00:51]} 36. Nf8 {[%emt 0:
00:53]} a6 {[%emt 0:00:50]} 37. Nxd7 {[%emt 0:00:47]} Ne3 {[%emt 0:01:07]} 38.
e8=Q {[%emt 0:00:48]} Nf5 {[%emt 0:01:00]} 39. Rxf5 {[%emt 0:00:48]} a5 {
[%emt 0:00:58]} 40. Qg8 {[%emt 0:00:47]} a4 {[%emt 0:00:56]} 41. Be5 {[%emt 0:
00:49]} a3 {[%emt 0:01:01]} 42. Rf7 {[%emt 0:00:48]} Kh5 {[%emt 0:00:56]} 43.
Rh7# {[%emt 0:00:47] MadCuteMatter won by checkmate} 1-0

[Event "Fast Chess"]
[Site "ChessKid.com"]
[Date "2020.04.19"]
[Round "1"]
[White "Stiedl, Dominik"]
[Black "Gross, Lukas"]
[Result "0-1"]
[ECO "B00"]
[WhiteElo "1067"]
[BlackElo "1177"]
[PlyCount "46"]
[EventDate "2020.??.??"]
[TimeControl "300"]
[WhiteClock "0:03:22"]
[BlackClock "0:02:10"]

1. e4 {[%emt 0:00:00]} g5 {[%emt 0:00:01]} 2. Qf3 {[%emt 0:00:02]} Nh6 {
[%emt 0:00:04]} 3. Bc4 {[%emt 0:00:02]} Bg7 {[%emt 0:00:01]} 4. d4 {[%emt 0:00:
08]} Bxd4 {[%emt 0:00:03]} 5. Bxg5 {[%emt 0:00:07]} O-O {[%emt 0:00:06]} 6.
Bxh6 {[%emt 0:00:04]} Re8 {[%emt 0:00:02]} 7. Qxf7+ {[%emt 0:00:05]} Kh8 {
[%emt 0:00:03]} 8. Bg7+ {[%emt 0:00:09]} Bxg7 {[%emt 0:00:05]} 9. h4 {[%emt 0:
00:11]} Rf8 {[%emt 0:00:02]} 10. Qh5 {[%emt 0:00:18]} Bxb2 {[%emt 0:00:03]} 11.
e5 {[%emt 0:00:10]} Bxa1 {[%emt 0:00:03]} 12. Qg5 {[%emt 0:00:13]} Rg8 {
[%emt 0:00:05]} 13. Bxg8 {[%emt 0:00:04]} Qxg8 {[%emt 0:00:04]} 14. Qf5 {
[%emt 0:00:17]} Qg7 {[%emt 0:00:10]} 15. f4 {[%emt 0:00:09]} d6 {[%emt 0:00:03]
} 16. exd6 {[%emt 0:00:02]} cxd6 {[%emt 0:00:03]} 17. Rh3 {[%emt 0:00:09]} Bxf5
{[%emt 0:00:02]} 18. Re3 {[%emt 0:00:14]} Qxg2 {[%emt 0:00:09]} 19. Rf3 {
[%emt 0:00:06]} Qxg1+ {[%emt 0:00:05]} 20. Rf1 {[%emt 0:00:03]} Qe3+ {[%emt 0:
00:04]} 21. Kd1 {[%emt 0:00:03]} Na6 {[%emt 0:00:10]} 22. Re1 {[%emt 0:00:10]}
Qd4+ {[%emt 0:00:08]} 23. Kc1 {[%emt 0:00:04]} Bb2# {[%emt 0:00:02]
RosyPopularArm won by checkmate} 0-1

[Event "Fast Chess"]
[Site "ChessKid.com"]
[Date "2020.04.19"]
[Round "2"]
[White "Gross, Lukas"]
[Black "Hlinka, Patrick"]
[Result "1-0"]
[ECO "A00"]
[WhiteElo "1184"]
[BlackElo "1100"]
[PlyCount "63"]
[EventDate "2020.??.??"]
[TimeControl "300"]
[WhiteClock "0:01:29"]
[BlackClock "0:02:20"]

1. g3 {[%emt 0:00:00]} b5 {[%emt 0:00:12]} 2. Bg2 {[%emt 0:00:02]} c6 {[%emt 0:
00:02]} 3. Nh3 {[%emt 0:00:02]} Bb7 {[%emt 0:00:02]} 4. O-O {[%emt 0:00:03]}
Qc7 {[%emt 0:00:06]} 5. b3 {[%emt 0:00:05]} c5 {[%emt 0:00:03]} 6. c3 {[%emt 0:
00:03]} Bxg2 {[%emt 0:00:03]} 7. Kxg2 {[%emt 0:00:03]} Qc6+ {[%emt 0:00:02]} 8.
Kg1 {[%emt 0:00:01]} c4 {[%emt 0:00:02]} 9. bxc4 {[%emt 0:00:02]} bxc4 {
[%emt 0:00:10]} 10. d3 {[%emt 0:00:11]} cxd3 {[%emt 0:00:07]} 11. exd3 {
[%emt 0:00:02]} Qf6 {[%emt 0:00:08]} 12. Ng5 {[%emt 0:00:14]} Qxc3 {[%emt 0:00:
08]} 13. Nxc3 {[%emt 0:00:02]} h6 {[%emt 0:00:07]} 14. Nh3 {[%emt 0:00:04]} f5
{[%emt 0:00:06]} 15. Qf3 {[%emt 0:00:04]} Nc6 {[%emt 0:00:10]} 16. Nb5 {
[%emt 0:00:03]} Rc8 {[%emt 0:00:04]} 17. Qxf5 {[%emt 0:00:21]} e5 {[%emt 0:00:
15]} 18. a4 {[%emt 0:00:11]} Nd4 {[%emt 0:00:07]} 19. Qxe5+ {[%emt 0:00:05]}
Ne7 {[%emt 0:00:15]} 20. Nxd4 {[%emt 0:00:02]} d6 {[%emt 0:00:22]} 21. Qxd6 {
[%emt 0:00:05]} Nf5 {[%emt 0:00:03]} 22. Nxf5 {[%emt 0:00:03]} Bxd6 {[%emt 0:
00:02]} 23. Nxd6+ {[%emt 0:00:03]} Kd7 {[%emt 0:00:04]} 24. Nxc8 {[%emt 0:00:
01]} Kxc8 {[%emt 0:00:01]} 25. Bb2 {[%emt 0:00:02]} Rg8 {[%emt 0:00:03]} 26.
Bd4 {[%emt 0:00:05]} Kb7 {[%emt 0:00:06]} 27. Rab1+ {[%emt 0:00:03]} Ka8 {
[%emt 0:00:06]} 28. Rfe1 {[%emt 0:00:04]} g5 {[%emt 0:00:05]} 29. Be5 {[%emt 0:
00:21]} g4 {[%emt 0:00:14]} 30. Nf4 {[%emt 0:00:06]} Re8 {[%emt 0:00:04]} 31.
Nd5 {[%emt 0:00:04]} Rd8 {[%emt 0:00:12]} 32. Nc7# {[%emt 0:00:03]
RosyPopularArm won by checkmate} 1-0

[Event "Fast Chess"]
[Site "ChessKid.com"]
[Date "2020.04.19"]
[Round "2"]
[White "Hlinka, Patricia"]
[Black "Stiedl, Dominik"]
[Result "1-0"]
[ECO "D00"]
[WhiteElo "946"]
[BlackElo "1057"]
[PlyCount "91"]
[EventDate "2020.??.??"]
[TimeControl "300"]
[WhiteClock "0:00:33"]
[BlackClock "0:00:36"]

1. d4 {[%emt 0:00:00]} d5 {[%emt 0:00:06]} 2. c3 {[%emt 0:00:03]} e6 {[%emt 0:
00:03]} 3. e3 {[%emt 0:00:02]} Nf6 {[%emt 0:00:04]} 4. Nh3 {[%emt 0:00:10]} g5
{[%emt 0:00:12]} 5. Qa4+ {[%emt 0:00:05]} c6 {[%emt 0:00:04]} 6. Nxg5 {[%emt 0:
00:10]} h6 {[%emt 0:00:02]} 7. Nh3 {[%emt 0:00:04]} b5 {[%emt 0:00:05]} 8. Qd1
{[%emt 0:00:04]} e5 {[%emt 0:00:08]} 9. dxe5 {[%emt 0:00:03]} Bg4 {[%emt 0:00:
07]} 10. Qc2 {[%emt 0:00:09]} Ne4 {[%emt 0:00:21]} 11. Ng1 {[%emt 0:00:16]} Na6
{[%emt 0:00:06]} 12. f3 {[%emt 0:00:06]} Nb4 {[%emt 0:00:14]} 13. cxb4 {
[%emt 0:00:06]} Bxf3 {[%emt 0:00:12]} 14. gxf3 {[%emt 0:00:02]} Ng3 {[%emt 0:
00:05]} 15. hxg3 {[%emt 0:00:04]} h5 {[%emt 0:00:03]} 16. f4 {[%emt 0:00:06]}
h4 {[%emt 0:00:05]} 17. gxh4 {[%emt 0:00:05]} Be7 {[%emt 0:00:05]} 18. Na3 {
[%emt 0:00:07]} Bxh4+ {[%emt 0:00:04]} 19. Kd1 {[%emt 0:00:07]} Ke7 {[%emt 0:
00:14]} 20. f5 {[%emt 0:00:05]} a6 {[%emt 0:00:08]} 21. f6+ {[%emt 0:00:04]}
Ke6 {[%emt 0:00:04]} 22. Bh3+ {[%emt 0:00:07]} Kxe5 {[%emt 0:00:07]} 23. Bf1 {
[%emt 0:00:04]} Bf2 {[%emt 0:00:06]} 24. Nh3 {[%emt 0:00:08]} d4 {[%emt 0:00:
14]} 25. Nxf2 {[%emt 0:00:00]} dxe3+ {[%emt 0:00:02]} 26. Nd3+ {[%emt 0:00:08]}
Ke4 {[%emt 0:00:08]} 27. Rxh8 {[%emt 0:00:19]} Qxh8 {[%emt 0:00:03]} 28. Nb1 {
[%emt 0:00:10]} Qxf6 {[%emt 0:00:04]} 29. Ke2 {[%emt 0:00:09]} Rh8 {[%emt 0:00:
03]} 30. Qd1 {[%emt 0:00:08]} Rh3 {[%emt 0:00:04]} 31. Bxh3 {[%emt 0:00:08]}
Qf3+ {[%emt 0:00:13]} 32. Ke1 {[%emt 0:00:05]} Qxh3 {[%emt 0:00:09]} 33. Nc3+ {
[%emt 0:00:12]} Kd4 {[%emt 0:00:05]} 34. Nf2+ {[%emt 0:00:14]} Kc4 {[%emt 0:00:
12]} 35. Nxh3 {[%emt 0:00:02]} e2 {[%emt 0:00:06]} 36. Qxe2+ {[%emt 0:00:04]}
Kd4 {[%emt 0:00:01]} 37. Be3+ {[%emt 0:00:06]} Ke5 {[%emt 0:00:01]} 38. Qg4 {
[%emt 0:00:04]} Kd6 {[%emt 0:00:01]} 39. Qf5 {[%emt 0:00:02]} Ke7 {[%emt 0:00:
02]} 40. Bc5+ {[%emt 0:00:02]} Ke8 {[%emt 0:00:02]} 41. Ng5 {[%emt 0:00:04]}
Kd8 {[%emt 0:00:02]} 42. Qxf7 {[%emt 0:00:02]} Kc8 {[%emt 0:00:02]} 43. Bd6 {
[%emt 0:00:01]} Kd8 {[%emt 0:00:03]} 44. Qc7+ {[%emt 0:00:04]} Ke8 {[%emt 0:00:
01]} 45. Ne6 {[%emt 0:00:02]} a5 {[%emt 0:00:07]} 46. Qe7# {[%emt 0:00:01]
NeatBouncyCone won by checkmate} 1-0

[Event "Fast Chess"]
[Site "ChessKid.com"]
[Date "2020.04.19"]
[Round "3"]
[White "Hlinka, Patricia"]
[Black "Gross, Lukas"]
[Result "0-1"]
[ECO "A40"]
[WhiteElo "943"]
[BlackElo "1187"]
[PlyCount "34"]
[EventDate "2020.??.??"]
[TimeControl "300"]
[WhiteClock "0:03:25"]
[BlackClock "0:03:13"]

1. d4 {[%emt 0:00:00]} g6 {[%emt 0:00:01]} 2. d5 {[%emt 0:00:03]} Bg7 {[%emt 0:
00:01]} 3. Nh3 {[%emt 0:00:09]} Nf6 {[%emt 0:00:00]} 4. Na3 {[%emt 0:00:05]}
O-O {[%emt 0:00:01]} 5. Be3 {[%emt 0:00:12]} e6 {[%emt 0:00:04]} 6. dxe6 {
[%emt 0:00:01]} fxe6 {[%emt 0:00:03]} 7. Bc1 {[%emt 0:00:08]} Nd5 {[%emt 0:00:
07]} 8. g4 {[%emt 0:00:06]} h5 {[%emt 0:00:09]} 9. gxh5 {[%emt 0:00:02]} gxh5 {
[%emt 0:00:02]} 10. Bg2 {[%emt 0:00:02]} h4 {[%emt 0:00:03]} 11. O-O {[%emt 0:
00:05]} Ne7 {[%emt 0:00:06]} 12. Be4 {[%emt 0:00:08]} d5 {[%emt 0:00:09]} 13.
Bd3 {[%emt 0:00:04]} Qe8 {[%emt 0:00:05]} 14. Qd2 {[%emt 0:00:03]} Qg6+ {
[%emt 0:00:05]} 15. Kh1 {[%emt 0:00:16]} Qg4 {[%emt 0:00:26]} 16. Qg5 {[%emt 0:
00:18]} Qxh3 {[%emt 0:00:09]} 17. Qh5 {[%emt 0:00:05]} Qxf1# {[%emt 0:00:03]
RosyPopularArm won by checkmate} 0-1

[Event "Fast Chess"]
[Site "ChessKid.com"]
[Date "2020.03.27"]
[Round "1"]
[White "Dai, Lana"]
[Black "Donchev, Martin"]
[Result "1-0"]
[ECO "C27"]
[WhiteElo "1030"]
[BlackElo "699"]
[PlyCount "29"]
[EventDate "2020.??.??"]
[TimeControl "600"]
[WhiteClock "0:06:09"]
[BlackClock "0:08:16"]

1. e4 {[%emt 0:00:02]} e5 {[%emt 0:00:08]} 2. Nc3 {[%emt 0:00:02]} Nf6 {
[%emt 0:00:12]} 3. Bc4 {[%emt 0:00:03]} Bc5 {[%emt 0:00:18]} 4. Nf3 {[%emt 0:
00:02]} Ng4 {[%emt 0:00:14]} 5. d4 {[%emt 0:00:10]} exd4 {[%emt 0:00:11]} 6.
Nxd4 {[%emt 0:00:03]} Bxd4 {[%emt 0:00:11]} 7. Qxd4 {[%emt 0:00:04]} Nc6 {
[%emt 0:00:20]} 8. Qxg7 {[%emt 0:00:03]} Rf8 {[%emt 0:00:10]} 9. Qxg4 {[%emt 0:
00:12]} Ne5 {[%emt 0:00:09]} 10. Qe2 {[%emt 0:00:09]} Rg8 {[%emt 0:00:23]} 11.
g3 {[%emt 0:00:08]} b6 {[%emt 0:00:18]} 12. f4 {[%emt 0:00:15]} Ng4 {[%emt 0:
00:23]} 13. Bb3 {[%emt 0:00:17]} Bb7 {[%emt 0:00:13]} 14. Qc4 {[%emt 0:00:05]}
f5 {[%emt 0:00:41]} 15. Qf7# {[%emt 0:00:09] TopBrownCave won by checkmate} 1-0

[Event "Fast Chess"]
[Site "ChessKid.com"]
[Date "2020.03.27"]
[Round "2"]
[White "Sasse, Gabriel"]
[Black "Halimi, Dorian"]
[Result "0-1"]
[ECO "B01"]
[WhiteElo "1131"]
[BlackElo "899"]
[PlyCount "36"]
[EventDate "2020.??.??"]
[TimeControl "600"]
[WhiteClock "0:08:13"]
[BlackClock "0:08:36"]

1. e4 {[%emt 0:00:00]} d5 {[%emt 0:00:00]} 2. exd5 {[%emt 0:00:02]} Qxd5 {
[%emt 0:00:04]} 3. Nf3 {[%emt 0:00:02]} Qd8 {[%emt 0:00:03]} 4. Nc3 {[%emt 0:
00:01]} Bg4 {[%emt 0:00:02]} 5. Be2 {[%emt 0:00:03]} Bxf3 {[%emt 0:00:05]} 6.
Bxf3 {[%emt 0:00:02]} c6 {[%emt 0:00:04]} 7. h3 {[%emt 0:00:03]} Nf6 {[%emt 0:
00:05]} 8. O-O {[%emt 0:00:02]} e6 {[%emt 0:00:05]} 9. d3 {[%emt 0:00:04]} Be7
{[%emt 0:00:02]} 10. Bf4 {[%emt 0:00:03]} O-O {[%emt 0:00:03]} 11. Nb5 {
[%emt 0:00:03]} a6 {[%emt 0:00:10]} 12. Nc7 {[%emt 0:00:05]} Ra7 {[%emt 0:00:
05]} 13. Be3 {[%emt 0:00:03]} Qxc7 {[%emt 0:00:34]} 14. Bxa7 {[%emt 0:00:03]}
Qd6 {[%emt 0:00:03]} 15. Bxb8 {[%emt 0:00:05]} Rxb8 {[%emt 0:00:12]} 16. Be4 {
[%emt 0:00:23]} Bd8 {[%emt 0:00:04]} 17. Qf3 {[%emt 0:00:05]} Bc7 {[%emt 0:00:
04]} 18. Qe3 {[%emt 0:00:15]} Qh2# {[%emt 0:00:02] FullMagentaEclipse won by
checkmate} 0-1